bitfinex/quotes_ETHUSD_20250430
["timestamp","ask_amount","ask_price","bid_price","bid_amount"]
[1745999284203,13.00223681,1794.1,1794.0,1e-08]
[1745999284604,13.81863681,1794.1,1794.0,1e-08]
[1745999285267,5.57444673,1793.9,1793.4,5.063]
[1745999285447,5.57464054,1793.9,1793.5,0.55]
[1745999285838,5.57511933,1793.7,1793.4,5.063]
[1745999286062,5.73968286,1793.6,1793.4,5.063]
[1745999286246,11.31521998,1793.6,1793.4,5.063]
[1745999286661,5.57568999,1793.5,1793.4,5.063]
[1745999286864,5.57568999,1793.5,1793.2,0.4103171]
[1745999286865,5.57620814,1793.4,1793.2,0.4103171]
[1745999287282,6.37630814,1793.4,1793.2,0.4103171]
[1745999287444,11.31599468,1793.3,1793.2,0.4103171]
[1745999287862,5.73968286,1793.3,1793.2,0.4103171]
[1745999288466,5.73968286,1793.3,1793.2,0.9603171]
[1745999288664,5.73968286,1793.3,1793.2,6.53693989]
[1745999289172,5.73968286,1793.6,1793.3,5.57618664]
[1745999289373,5.73968286,1793.6,1793.4,5.57585682]
[1745999289574,5.73968286,1793.6,1793.4,5.57578799]
[1745999289866,5.73968286,1793.8,1793.7,6.12506829]
[1745999290040,5.73968286,1793.8,1793.7,11.18906829]
[1745999290638,5.73968286,1794.0,1793.9,6.12444673]
[1745999290837,5.73968286,1794.0,1793.9,6.95664673]
[1745999291069,5.73968286,1794.3,1794.0,6.12391253]
[1745999291271,5.73968286,1794.3,1794.1,5.064]
[1745999291658,5.73968286,1794.3,1794.2,6.12351465]
[1745999291866,5.73968286,1794.5,1794.3,5.57302357]
[1745999292041,5.73968286,1794.5,1794.4,6.93989344]
[1745999292350,5.73968286,1794.9,1794.6,5.57200992]
[1745999292552,5.73968286,1794.9,1794.6,5.064]
[1745999292964,11.31105328,1794.9,1794.6,5.064]
[1745999293292,5.73968286,1794.9,1794.6,5.064]
[1745999293480,0.30951447,1794.8,1794.6,10.63623573]
[1745999293786,0.30951447,1794.8,1794.7,0.55]
[1745999294074,0.30951447,1794.8,1794.7,6.12196188]
[1745999294381,5.73968286,1794.9,1794.7,0.55]
[1745999295160,0.7597,1795.2,1794.7,6.12181906]
[1745999295363,6.96314057,1795.2,1794.7,11.69352957]
[1745999295597,12.08546646,1795.4,1795.0,5.57099149]
[1745999295949,6.51558286,1795.4,1795.0,10.63502106]
[1745999296264,12.08539725,1795.4,1795.0,5.064]
[1745999296958,12.08539725,1795.4,1795.0,10.63500447]
[1745999297782,5.5701021,1795.3,1795.0,5.064]
[1745999298080,0.55701021,1795.2,1794.9,5.613]
[1745999298281,12.08538235,1795.4,1795.0,5.57088923]
[1745999298484,5.73968286,1795.4,1795.2,6.37045549]
[1745999298685,5.73968286,1795.7,1795.4,5.56966184]
[1745999298849,5.73968286,1795.7,1795.3,11.18292451]
[1745999298850,11.30865957,1795.7,1795.3,5.613]
[1745999299048,12.99639582,1795.7,1795.3,5.613]
[1745999299368,7.42741911,1795.7,1795.4,5.5696383]
[1745999299677,5.73968286,1795.7,1795.4,5.5696383]
[1745999299991,5.73968286,1795.7,1795.5,6.11935846]
[1745999300222,5.73968286,1795.7,1795.6,6.87766907]
[1745999301582,5.56745956,1796.2,1795.7,6.11860706]
[1745999301914,5.56768186,1796.1,1795.8,5.062]
[1745999302414,11.13559842,1796.1,1795.8,5.062]
[1745999302613,1.11355984,1796.1,1795.8,5.062]
[1745999302807,5.56779797,1796.1,1795.8,5.062]
[1745999303118,5.56805331,1796.0,1795.8,5.062]
[1745999303319,5.56780742,1796.1,1795.8,5.062]
[1745999303719,5.5679745,1796.0,1795.8,5.062]
[1745999303926,5.56781796,1796.1,1795.8,5.062]
[1745999304219,5.56793257,1796.0,1795.8,5.062]
[1745999305028,5.73968286,1796.0,1795.8,5.062]
[1745999306497,5.73968286,1796.0,1795.9,0.55]
[1745999306697,11.30781562,1796.0,1795.8,5.062]
[1745999307005,5.56910547,1795.7,1795.4,0.7501]
[1745999307209,5.73968286,1795.9,1795.5,5.061]
[1745999307396,5.56893192,1795.7,1795.5,5.061]
[1745999307612,5.56873988,1795.8,1795.5,5.061]
[1745999308220,11.30805674,1795.9,1795.5,5.061]
[1745999308416,5.56870686,1795.8,1795.5,5.061]
[1745999308745,12.63306521,1795.9,1795.5,5.061]
[1745999308933,12.63306521,1795.9,1795.5,10.63045583]
[1745999309744,11.30797365,1795.9,1795.6,0.55]
[1745999309946,11.30797365,1795.9,1795.8,0.55]
[1745999309947,5.73968286,1795.9,1795.8,0.55]
[1745999311222,5.73968286,1796.3,1796.0,6.11781129]
[1745999311553,5.73968286,1796.3,1796.2,1.3041]
[1745999312912,5.73968286,1796.3,1796.2,6.87140876]
[1745999313244,0.5144,1796.4,1796.2,6.87140876]
[1745999313245,0.5144,1796.4,1796.3,9.11699883]
[1745999316875,0.5144,1796.4,1796.3,3.55]
[1745999317168,0.5144,1796.4,1796.3,9.11699883]
[1745999318175,0.5144,1796.4,1796.3,14.21699883]
[1745999319005,0.5144,1796.4,1796.3,15.03559883]
[1745999319284,0.5144,1796.4,1796.3,17.31372238]
[1745999319892,0.62482216,1796.4,1796.3,17.31372238]
[1745999320404,0.5144,1796.4,1796.3,17.31372238]
[1745999323181,1e-08,1796.4,1796.3,17.31372238]
[1745999324357,0.11042217,1796.4,1796.3,16.76372238]
[1745999324557,1e-08,1796.4,1796.3,16.76372238]
[1745999324791,0.11042217,1796.4,1796.3,17.31372238]
[1745999324976,1e-08,1796.4,1796.3,17.31372238]
[1745999325178,0.11042217,1796.4,1796.3,17.31372238]
[1745999325511,0.11042217,1796.4,1796.3,11.66372238]
[1745999325666,0.11042217,1796.4,1796.3,16.76172238]
[1745999325866,0.11042217,1796.4,1796.3,14.31172238]
[1745999326293,0.11042217,1796.4,1796.3,17.31172238]
[1745999330684,0.11042217,1796.4,1796.3,16.49312238]
[1745999330881,0.11042217,1796.4,1796.3,3.0]
[1745999331081,0.11042217,1796.4,1795.9,0.7799]
[1745999331287,0.7876,1796.3,1796.0,5.098]
[1745999331596,5.8494588,1796.2,1796.0,5.098]
[1745999331792,5.8494588,1796.2,1795.9,3.0]
[1745999331996,5.8494588,1796.2,1796.0,5.098]
[1745999332800,11.4167771,1796.2,1796.0,5.098]
[1745999333207,5.8494588,1796.2,1796.0,5.098]
[1745999333979,5.8494588,1796.2,1795.8,8.56843389]
[1745999333980,6.52318286,1796.1,1795.6,18.386]
[1745999334276,12.20046298,1796.1,1795.7,10.66772866]
[1745999334875,12.20046298,1796.1,1795.8,5.649]
[1745999336216,6.63271645,1796.1,1795.8,11.2173668]
[1745999336382,6.63271645,1796.1,1795.8,5.649]
[1745999336583,5.84921645,1796.1,1796.0,0.55]
[1745999337086,11.41683517,1796.1,1795.8,5.099]
[1745999337307,11.41683517,1796.1,1795.9,0.55]
[1745999337807,6.34042873,1796.0,1795.9,0.55]
[1745999338006,6.445356,1796.0,1795.8,5.099]
[1745999338515,5.56823876,1795.9,1795.8,5.099]
[1745999339017,0.10492727,1795.9,1795.7,5.649]
[1745999339813,5.5683729,1795.9,1795.6,20.2246]
[1745999340021,5.73968286,1796.1,1795.1,0.7896]
[1745999340022,12.09937784,1795.8,1795.1,0.7896]
[1745999340206,6.36062395,1795.5,1794.8,3.3622009]
[1745999340409,0.791,1795.2,1794.9,10.59434004]
[1745999340722,5.73968286,1795.2,1795.1,5.57072029]
[1745999340925,5.73968286,1795.2,1795.1,7.50776551]
[1745999341089,5.73968286,1795.2,1795.1,8.05776551]
[1745999341284,5.73968286,1795.2,1795.1,11.05776551]
[1745999342815,5.73968286,1795.2,1795.1,10.23486551]
[1745999344818,5.73968286,1795.2,1795.1,0.55]
[1745999345030,6.55828286,1795.2,1794.9,10.59420589]
[1745999345846,5.73968286,1795.1,1794.7,8.57179832]
[1745999346032,5.57155141,1794.9,1794.8,5.024]
[1745999346230,5.57155141,1794.9,1794.6,5.029]
[1745999346231,0.7685,1794.8,1794.6,5.029]
[1745999346448,6.34026664,1794.8,1794.6,5.029]
[1745999346599,0.7685,1794.8,1794.6,5.029]
[1745999346806,6.50818286,1794.8,1794.6,11.66132098]
[1745999347241,6.50818286,1794.8,1794.7,6.12196188]
[1745999347442,5.73968286,1794.8,1794.7,6.12196188]
[1745999349256,5.73968286,1794.8,1794.7,0.55]
[1745999349463,6.52868286,1795.3,1795.1,0.55]
[1745999349822,6.52868286,1795.3,1795.2,6.12040998]
[1745999349823,5.73968286,1795.3,1795.2,6.12040998]
[1745999351067,5.73968286,1795.7,1795.5,0.55]
[1745999351371,5.73968286,1795.7,1795.5,11.14437002]
[1745999351578,5.73968286,1795.7,1795.6,5.56916907]
[1745999351872,5.73968286,1795.7,1795.5,5.025]
[1745999352024,5.73968286,1795.7,1795.6,0.55]
[1745999353125,5.73968286,1795.7,1795.6,6.11916907]
[1745999354464,5.73968286,1795.7,1795.6,0.55]
[1745999354967,5.73968286,1795.7,1795.6,5.025]
[1745999355160,6.39161339,1795.6,1795.3,5.025]
[1745999355530,0.8223,1795.6,1795.3,5.025]
[1745999356271,0.8223,1795.6,1795.3,10.59499389]
[1745999356630,0.8223,1795.6,1795.4,6.11978883]
[1745999356826,5.73968286,1795.7,1795.5,5.56947925]
[1745999357869,5.73968286,1795.7,1795.3,11.40713711]
[1745999357870,5.73968286,1795.7,1795.3,10.59493711]
[1745999358052,11.30865515,1795.7,1795.3,10.59493711]
[1745999358263,11.30865515,1795.7,1795.4,0.55]
[1745999358555,5.73968286,1795.7,1795.4,6.11967757]
[1745999358758,5.56930556,1795.6,1795.4,0.55]
[1745999359762,11.3087174,1795.7,1795.4,0.55]
[1745999360137,16.8778646,1795.7,1795.4,0.55]
[1745999360533,5.56918275,1795.6,1795.4,0.55]
[1745999360970,5.56959554,1795.5,1795.3,5.025]
[1745999361267,5.57077762,1795.1,1795.0,5.025]
[1745999361567,5.73968286,1795.1,1795.0,10.59603064]
[1745999361936,5.73968286,1795.1,1795.0,11.14603064]
[1745999362536,5.73968286,1795.1,1795.0,14.33369165]
[1745999363873,5.73968286,1795.1,1795.0,5.025]
[1745999364181,5.73968286,1795.1,1795.0,14.04533959]
[1745999364336,5.73968286,1795.1,1795.0,17.04533959]
[1745999364536,5.73968286,1795.1,1795.0,20.2330006]
[1745999365173,5.73968286,1795.1,1795.0,21.0545006]
[1745999366065,6.36890622,1795.7,1795.0,21.0545006]
[1745999366066,5.73968286,1795.6,1795.5,0.55]
[1745999366368,5.73968286,1795.6,1795.5,11.75643829]
[1745999366779,0.784,1795.9,1795.6,5.56901281]
[1745999367091,0.784,1795.9,1795.7,0.55]
[1745999367267,12.09203212,1795.9,1795.6,5.025]
[1745999367588,12.09203212,1795.9,1795.7,0.55]
[1745999367589,6.52368286,1795.9,1795.7,0.55]
[1745999367944,6.52368286,1795.9,1795.7,6.11884096]
[1745999368147,5.73968286,1795.9,1795.7,7.79014175]
[1745999368588,5.73968286,1795.9,1795.8,0.55]
[1745999368884,5.73968286,1795.9,1795.8,12.30620984]
[1745999370347,5.73968286,1795.9,1795.8,0.55]
[1745999370758,5.73968286,1795.9,1795.8,6.11854883]
[1745999370959,5.73968286,1796.3,1796.2,0.55]
[1745999371500,5.73968286,1796.3,1796.2,9.30496977]
[1745999371678,5.73968286,1796.3,1796.2,12.30496977]
[1745999372084,5.73968286,1796.3,1796.2,13.06796977]
[1745999372289,5.73968286,1796.3,1796.2,15.43921269]
[1745999373161,1e-08,1796.4,1796.3,8.56699883]
[1745999373363,1e-08,1796.4,1796.3,9.11699883]
[1745999374382,1e-08,1796.4,1796.3,0.55]
[1745999374752,0.79890001,1796.4,1796.3,0.55]
[1745999375286,6.53858287,1796.4,1796.1,5.077]
[1745999375454,6.53858287,1796.4,1796.1,6.51794281]
[1745999375867,6.53858287,1796.4,1796.2,0.55]
[1745999378551,5.73968287,1796.4,1796.2,6.11730533]
[1745999379088,5.73968287,1796.4,1796.3,5.56699883]
[1745999379952,5.73968287,1796.4,1796.3,6.11699883]
[1745999380282,5.73968287,1796.4,1796.3,7.28542925]
[1745999380960,5.73968287,1796.4,1796.3,1.71843042]
[1745999381160,5.73968287,1796.4,1796.3,0.55]
[1745999384197,5.73968287,1796.4,1796.3,6.11699883]
[1745999384694,5.73968287,1796.4,1796.3,6.11699883]
[1745999385084,5.73968287,1796.4,1796.3,0.55]
[1745999385483,1e-08,1796.4,1796.3,9.89709883]
[1745999385685,1e-08,1796.4,1796.3,12.1219157]
[1745999385887,1e-08,1796.4,1796.3,6.55491687]
[1745999386097,1e-08,1796.4,1796.3,5.77481687]
[1745999386394,1e-08,1796.4,1796.3,11.3418157]
[1745999387399,1e-08,1796.4,1796.3,16.4168157]
[1745999388098,1e-08,1796.4,1796.3,17.2106157]
[1745999395103,1e-08,1796.4,1796.3,17.2106157]
[1745999397907,1e-08,1796.4,1796.3,17.4837755]
[1745999399703,1e-08,1796.4,1796.3,17.2106157]
[1745999399907,5.56792873,1796.0,1795.2,6.17]
[1745999400117,5.56792873,1796.0,1795.0,6.24882228]
[1745999400118,5.57050833,1795.2,1795.0,6.24882228]
[1745999400312,6.33372029,1795.1,1795.0,6.24882228]
[1745999400473,0.763,1795.1,1795.0,5.9580019]
[1745999400673,5.57003808,1795.4,1795.0,5.9580019]
[1745999400984,5.57056303,1795.2,1795.0,5.9580019]
[1745999401303,5.57072029,1795.1,1795.0,5.9580019]
[1745999401674,6.37702029,1795.1,1795.0,5.9580019]
[1745999402112,6.35224102,1794.9,1794.8,7.07512725]
[1745999402407,7.16962488,1794.9,1794.8,7.07512725]
[1745999402788,7.68169377,1794.9,1794.8,7.07512725]
[1745999403111,7.37517742,1794.9,1794.8,7.07512725]
[1745999403409,6.86310853,1794.9,1794.8,7.07512725]
[1745999403713,6.35224102,1794.9,1794.8,7.07512725]
[1745999405233,12.09192388,1794.9,1794.8,7.07512725]
[1745999406497,6.52058286,1794.9,1794.8,7.62512725]
[1745999406703,0.8104,1795.2,1794.8,13.95926745]
[1745999406906,0.8104,1795.2,1794.8,11.9911402]
[1745999407411,0.8104,1795.2,1795.0,0.55]
[1745999407606,5.56998512,1795.4,1795.0,0.55]
[1745999407607,5.56990469,1795.4,1795.0,0.55]
[1745999407809,6.76490622,1795.4,1795.0,0.55]
[1745999408010,0.8104,1795.5,1795.2,0.55]
[1745999408791,6.37998774,1795.5,1795.2,0.55]
[1745999409522,0.8104,1795.5,1795.2,0.55]
[1745999409816,0.8104,1795.5,1795.2,6.12033877]
[1745999410018,0.8104,1795.5,1795.2,6.12039795]
[1745999410185,0.8104,1795.5,1795.2,5.658]
[1745999410388,6.37989632,1795.5,1795.2,5.658]
[1745999410617,6.37990732,1795.5,1795.2,5.658]
[1745999410804,0.8104,1795.5,1795.2,5.658]
[1745999411417,0.8104,1795.5,1795.2,11.22837354]
[1745999411618,0.8104,1795.5,1795.2,11.22836961]
[1745999411916,6.55008286,1795.5,1795.2,11.22836961]
[1745999412316,12.11956814,1795.5,1795.2,5.658]
[1745999413022,6.55008286,1795.5,1795.2,11.22835895]
[1745999413314,12.11960183,1795.5,1795.2,5.658]
[1745999414821,5.56981502,1795.4,1795.2,0.55]
[1745999415020,8.31897533,1795.5,1794.9,0.55]
[1745999415021,5.5705514,1795.2,1794.9,0.55]
[1745999415225,5.5705514,1795.2,1794.9,3.55]
[1745999415386,5.57134102,1794.9,1794.8,5.108]
[1745999415592,0.8304,1795.1,1794.8,5.108]
[1745999415593,5.57123557,1795.0,1794.8,5.108]
[1745999415927,5.57134102,1794.9,1794.8,5.108]
[1745999416124,5.73968286,1795.2,1794.9,5.57122438]
[1745999416291,5.73968286,1795.2,1795.0,0.55]
[1745999417266,0.8304,1795.4,1795.2,0.55]
[1745999417621,0.8304,1795.4,1795.2,6.1203819]
[1745999417829,5.73968286,1795.5,1795.3,9.11990328]
[1745999418250,5.73968286,1795.5,1795.3,3.55]
[1745999418620,0.7736,1795.4,1795.2,5.109]
[1745999418848,6.34358247,1795.4,1795.2,5.109]
[1745999419947,11.91362085,1795.4,1795.2,5.109]
[1745999420123,5.5700997,1795.3,1795.2,5.659]
[1745999420847,5.57040998,1795.2,1794.9,3.0]
[1745999421026,5.57092892,1795.1,1794.9,3.0]
[1745999421418,5.57054626,1795.2,1794.9,3.0]
[1745999421829,5.57054626,1795.2,1795.0,0.55]
[1745999423142,5.57072029,1795.1,1795.0,0.55]
[1745999424252,6.32812029,1795.1,1795.0,0.55]
[1745999424453,5.57122563,1795.0,1794.8,5.109]
[1745999424753,5.57134102,1794.9,1794.8,5.109]
[1745999425059,5.57122563,1795.0,1794.8,5.659]
[1745999425060,5.57123966,1795.0,1794.8,5.659]
[1745999425649,11.14251639,1795.0,1794.8,5.659]
[1745999425831,11.14253511,1795.0,1794.8,5.659]
[1745999426167,11.14253462,1795.0,1794.8,5.659]
[1745999426370,5.57123966,1795.0,1794.8,5.659]
[1745999426575,11.14253141,1795.0,1794.8,5.659]
[1745999427264,5.57123966,1795.0,1794.8,5.659]
[1745999427686,12.70078515,1795.1,1794.8,5.659]
[1745999427687,18.27180459,1795.1,1794.8,5.659]
[1745999428343,6.39033831,1795.0,1794.8,5.659]
[1745999428549,5.57134102,1794.9,1794.8,5.659]
[1745999429122,0.51363826,1794.9,1794.8,5.659]
[1745999429328,6.08497928,1794.9,1794.8,5.659]
[1745999429956,6.59861371,1794.9,1794.8,5.659]
[1745999430462,6.90680408,1794.9,1794.8,5.659]
[1745999431162,6.90680408,1794.9,1794.6,0.555]
[1745999431163,5.57196188,1794.7,1794.6,0.555]
[1745999431455,6.08560014,1794.7,1794.6,0.555]
[1745999431958,6.39379051,1794.7,1794.6,0.555]
[1745999432263,7.15949051,1794.7,1794.6,0.005]
[1745999432450,7.67312494,1794.7,1794.6,0.005]
[1745999432649,7.67312494,1794.7,1794.6,0.555]
[1745999433734,2.10116306,1794.7,1794.6,0.555]
[1745999433933,1.33546306,1794.7,1794.6,0.555]
[1745999436264,6.90742494,1794.7,1794.6,0.005]
[1745999436461,6.90742494,1794.7,1794.6,0.555]
[1745999436661,1.33546306,1794.7,1794.6,0.555]
[1745999436841,6.90742494,1794.7,1794.6,0.555]
[1745999437043,1.33546306,1794.7,1794.6,0.555]
[1745999437765,0.82182863,1794.7,1794.6,0.555]
[1745999438656,0.82182863,1794.7,1794.6,6.12727237]
[1745999438962,0.82182863,1794.7,1794.6,0.555]
[1745999439672,7.15419051,1794.7,1794.6,0.005]
[1745999439859,7.86960956,1794.7,1794.6,0.005]
[1745999440064,8.38319311,1794.7,1794.6,0.005]
[1745999440655,14.12287597,1794.7,1794.6,0.005]
[1745999441074,7.83549504,1794.7,1794.6,0.555]
[1745999441280,7.07509504,1794.7,1794.6,0.555]
[1745999441869,12.64705692,1794.7,1794.6,0.005]
[1745999442174,13.47015692,1794.7,1794.6,0.005]
[1745999445057,5.57258289,1794.5,1794.3,5.85926669]
[1745999445257,6.38269344,1794.4,1794.3,5.85926669]
[1745999445568,6.39472207,1794.4,1794.3,5.85926669]
[1745999445755,6.39472207,1794.4,1793.4,5.036]
[1745999445756,0.8098,1793.9,1793.4,5.036]
[1745999445956,0.7589,1793.5,1793.4,5.036]
[1745999446280,6.64288944,1793.5,1793.2,0.4103171]
[1745999446491,5.5761967,1793.4,1793.2,0.4103171]
[1745999446664,0.51363826,1793.4,1793.2,0.4103171]
[1745999446849,0.51363826,1793.4,1793.3,0.55]
[1745999447050,0.30819037,1793.4,1793.2,6.58641338]
[1745999447288,0.30819037,1793.4,1793.3,6.37831182]
[1745999447587,0.30819037,1793.4,1793.3,6.92831182]
[1745999447799,0.51181535,1793.8,1793.5,5.57547098]
[1745999447998,6.35276091,1793.9,1793.5,13.61252986]
[1745999448151,6.35277494,1793.9,1793.5,8.037]
[1745999448358,5.57479435,1793.8,1793.5,8.037]
[1745999448556,5.88186192,1793.8,1793.5,8.037]
[1745999448868,0.30697884,1793.8,1793.6,0.55]
[1745999449063,0.7782,1793.9,1793.6,7.54156802]
[1745999449260,0.7782,1793.9,1793.6,1.96626567]
[1745999449454,5.57504909,1793.8,1793.3,10.61309287]
[1745999449755,0.7782,1793.9,1793.6,6.12530143]
[1745999449970,5.57417236,1794.0,1793.6,0.55]
[1745999450324,5.57417236,1794.0,1793.6,6.1253769]
[1745999450468,0.81834971,1793.9,1793.6,6.1253769]
[1745999450803,0.30688095,1793.9,1793.6,6.1253769]
[1745999450965,0.30688095,1793.9,1793.6,2.02008869]
[1745999451158,5.88149835,1793.9,1793.5,8.5756272]
[1745999451358,5.57519427,1793.7,1793.3,5.037]
[1745999451566,5.57547467,1793.6,1793.3,5.037]
[1745999451871,5.57526524,1793.7,1793.3,5.037]
[1745999452087,5.57540813,1793.6,1793.3,5.037]
[1745999452758,6.76683137,1793.7,1793.3,5.037]
[1745999453089,5.57523232,1793.7,1793.3,10.61326905]
[1745999453395,0.7658,1793.8,1793.4,0.55]
[1745999453568,0.7658,1793.8,1793.4,6.12581841]
[1745999453898,6.34462367,1794.0,1793.6,6.12526459]
[1745999454105,6.34467018,1794.0,1793.5,5.57549441]
[1745999454313,6.34467018,1794.0,1793.3,5.037]
[1745999454314,0.83,1793.8,1793.3,5.037]
[1745999454503,5.57600089,1793.4,1793.3,5.037]
[1745999454711,5.57631182,1793.3,1793.2,0.4103171]
[1745999456282,6.40612701,1793.4,1793.2,0.4103171]
[1745999457306,11.98242349,1793.4,1793.2,0.4103171]
[1745999457507,6.77455417,1793.3,1793.2,0.4103171]
[1745999458432,12.50923703,1793.3,1793.2,0.4103171]
[1745999458721,5.73468286,1793.3,1793.2,5.98693989]
[1745999458883,5.73468286,1793.3,1793.2,0.4103171]
[1745999459301,5.73468286,1793.3,1793.2,0.9603171]
[1745999459509,5.73468286,1793.3,1793.2,6.53693989]
[1745999459881,5.73468286,1793.3,1793.2,0.9603171]
[1745999460407,5.73468286,1793.3,1793.2,6.53693989]
[1745999460721,5.73468286,1793.3,1793.2,19.05690369]
[1745999462222,5.73468286,1793.3,1793.2,19.86040369]
[1745999464121,5.73468286,1793.8,1793.7,0.55]
[1745999465737,11.30962304,1793.8,1793.6,5.079]
[1745999466203,5.73468286,1793.8,1793.6,5.079]
[1745999466589,5.73468286,1793.8,1793.6,10.65419901]
[1745999467001,5.73468286,1793.8,1793.7,0.55]
[1745999469129,5.73468286,1793.8,1793.7,7.57101604]
[1745999469339,0.8145,1794.3,1793.7,4.9402]
[1745999469540,5.57407418,1794.1,1793.4,0.8273]
[1745999469838,5.57407418,1794.1,1793.8,0.55]
[1745999470041,11.30840811,1794.2,1793.8,6.12474278]
[1745999470241,6.36323366,1794.1,1793.8,0.55]
[1745999470408,5.57414017,1794.0,1793.7,10.65384831]
[1745999470730,5.57414393,1794.0,1793.8,0.55]
[1745999470953,6.76789693,1794.0,1793.8,0.55]
[1745999471233,1.193753,1794.0,1793.8,0.55]
[1745999471532,0.7894,1794.1,1793.8,6.12454229]
[1745999471702,5.73468286,1794.2,1793.8,6.12454229]
[1745999471703,5.73468286,1794.2,1794.0,0.55]
[1745999471895,5.73468286,1794.2,1794.0,6.12403539]
[1745999472498,5.73468286,1794.2,1794.0,6.12397089]
[1745999472728,5.73468286,1794.2,1794.1,6.12382531]
[1745999472932,5.73468286,1794.2,1794.1,6.94852531]
[1745999473431,5.73468286,1794.2,1794.1,0.55]
[1745999473600,0.7678,1794.1,1793.8,9.12472928]
[1745999473931,5.73468286,1794.2,1794.0,0.55]
[1745999474134,5.73468286,1794.2,1794.0,6.12408028]
[1745999474494,5.73468286,1794.2,1794.0,0.55]
[1745999474726,5.73468286,1794.2,1794.1,5.57382531]
[1745999475436,5.73468286,1794.2,1794.0,9.12394739]
[1745999475632,5.73468286,1794.2,1794.0,3.55]
[1745999475832,6.54908286,1794.1,1793.8,5.57473996]
[1745999476725,5.73468286,1794.1,1793.9,5.57426065]
[1745999476928,5.73468286,1794.1,1793.9,3.0]
[1745999477134,5.73468286,1794.1,1793.9,8.57430027]
[1745999477305,5.73468286,1794.1,1793.9,3.0]
[1745999477627,6.94492283,1794.1,1793.8,3.55]
[1745999477834,5.57416747,1794.0,1793.8,3.55]
[1745999478332,5.57416747,1794.0,1793.7,5.079]
[1745999478495,5.73468286,1793.9,1793.7,5.079]
[1745999478843,5.73468286,1793.9,1793.8,0.55]
[1745999479227,7.11795115,1793.9,1793.7,5.079]
[1745999479538,7.11795115,1793.9,1793.5,3.0]
[1745999479539,12.69242155,1793.9,1793.3,18.415]
[1745999479739,5.57511083,1793.7,1793.3,29.06909993]
[1745999479901,12.0608522,1793.6,1793.2,0.4103171]
[1745999480102,5.57582402,1793.5,1793.2,0.4103171]
[1745999480304,5.73468286,1793.4,1793.3,0.55]
[1745999480538,5.73468286,1793.4,1793.2,5.98693418]
[1745999480902,5.73468286,1793.4,1793.3,0.55]
[1745999485140,5.73468286,1793.4,1793.3,6.12631182]
[1745999485356,5.73468286,1793.4,1793.3,0.55]
[1745999485909,5.73468286,1793.4,1793.3,6.12631182]
[1745999486144,5.73468286,1793.4,1793.3,0.55]
[1745999486452,5.73468286,1793.4,1793.3,6.12631182]
[1745999486634,5.73468286,1793.4,1793.3,0.55]
[1745999486841,5.73468286,1793.4,1793.3,6.12631182]
[1745999487641,5.73468286,1793.4,1793.3,10.65648056]
[1745999487880,5.73468286,1793.8,1793.7,6.12506829]
[1745999490855,5.73468286,1794.0,1793.9,6.12444673]
[1745999491017,5.73468286,1794.0,1793.9,9.12444673]
[1745999491217,5.73468286,1794.0,1793.9,9.93184673]
[1745999491459,5.73468286,1794.0,1793.9,11.4824972]
[1745999491878,5.73468286,1794.0,1793.9,3.55]
[1745999492384,5.73468286,1794.0,1793.9,9.12444673]
[1745999495949,5.57203455,1794.7,1794.1,9.12382531]
[1745999495950,5.73468286,1794.2,1794.1,9.12382531]
[1745999496263,5.73468286,1794.2,1794.1,14.15482531]
[1745999496572,12.07288427,1794.6,1794.3,5.57319495]
[1745999496879,8.26508431,1794.6,1794.4,0.55]
[1745999497085,9.42906825,1795.1,1794.7,3.0]
[1745999497288,9.42906825,1795.1,1794.8,8.76963102]
[1745999497472,9.42906825,1795.1,1794.8,5.581]
[1745999497658,14.99979227,1795.1,1794.8,5.581]
[1745999498046,16.4997715,1795.1,1794.8,5.581]
[1745999498248,5.57110512,1795.0,1794.8,5.03]
[1745999498475,0.7712,1794.9,1794.8,5.03]
[1745999498643,0.7712,1794.9,1794.8,5.58]
[1745999499048,11.68494748,1795.1,1794.8,11.15165143]
[1745999499257,10.18496825,1795.1,1794.9,0.55]
[1745999500092,10.18496825,1795.1,1794.9,6.12130957]
[1745999500310,9.42906825,1795.1,1794.9,7.71110367]
[1745999500510,9.42906825,1795.1,1795.0,6.12103064]
[1745999501880,9.42906825,1795.1,1795.0,12.30966166]
[1745999503125,9.42906825,1795.1,1795.0,13.07326166]
[1745999503596,5.73468286,1795.1,1795.0,13.07326166]
[1745999503799,5.73468286,1795.1,1795.0,15.09669859]
[1745999505209,5.73468286,1795.5,1795.4,0.55]
[1745999505417,5.73468286,1795.5,1795.4,5.579]
[1745999506212,5.56993997,1795.4,1795.0,10.59987547]
[1745999506364,5.73468286,1795.3,1795.1,0.55]
[1745999506563,5.73468286,1795.3,1795.1,6.12071966]
[1745999506897,5.73468286,1795.3,1795.1,0.55]
[1745999507275,5.73468286,1795.3,1795.1,6.12071916]
[1745999507998,5.73468286,1795.3,1795.1,0.55]
[1745999509608,11.30486437,1795.3,1795.1,0.55]
[1745999509905,6.35730998,1795.2,1795.1,0.55]
[1745999511002,12.09199284,1795.2,1795.1,0.55]
[1745999514727,12.09199284,1795.2,1795.0,1.6156]
[1745999515349,6.52158286,1795.2,1795.0,1.6156]
[1745999516037,12.09210215,1795.2,1795.0,1.6156]
[1745999516950,6.52158286,1795.2,1795.0,1.6156]
[1745999517318,5.73468286,1795.2,1795.0,1.6156]
[1745999517815,5.73468286,1795.2,1795.1,9.12072029]
[1745999519254,5.73468286,1795.2,1795.1,0.55]
[1745999519650,6.52868286,1795.2,1795.0,1.6156]
[1745999520534,5.73468286,1795.2,1795.1,6.12072029]
[1745999521841,5.73468286,1795.2,1795.1,9.12072029]
[1745999522162,5.73468286,1795.2,1795.1,11.84241746]
[1745999524244,5.73468286,1795.2,1795.1,11.07031746]
[1745999524452,5.73468286,1795.2,1795.1,3.55]
[1745999525761,5.73468286,1795.2,1795.1,9.12072029]
[1745999526121,5.73468286,1795.2,1795.1,3.55]
[1745999526632,6.55837236,1795.2,1795.0,4.6156]
[1745999527234,5.73468286,1795.2,1795.0,10.18662491]
[1745999529070,5.73468286,1795.2,1795.0,6.32350712]
[1745999529282,5.73468286,1795.2,1795.1,5.57072029]
[1745999529693,5.73468286,1795.2,1795.1,7.2920746]